[Event "Early-Titled-Tuesday-Blitz-April-16-2024"]
[Site "Chess.com"]
[Date "2024.04.16"]
[Round "7"]
[White "UmarovSabir"]
[Black "lluiss"]
[Result "0-1"]
[WhiteElo "2273"]
[BlackElo "2099"]
[TimeControl "180+1"]
[EndTime "9:20:48 PDT"]
[Termination "lluiss won on time"]

1. e4 {[%clk 0:03:00.2]} 1... c5 {[%clk 0:02:58.1]} 2. Nf3 {[%clk 0:02:59.5]}
2... d6 {[%clk 0:02:58.1]} 3. d4 {[%clk 0:03:00.3]} 3... cxd4 {[%clk 0:02:57.7]}
4. Nxd4 {[%clk 0:03:00.9]} 4... Nf6 {[%clk 0:02:57.9]} 5. Nc3 {[%clk 0:03:00.4]}
5... g6 {[%clk 0:02:58]} 6. Be2 {[%clk 0:02:55.2]} 6... Bg7 {[%clk 0:02:57.6]}
7. O-O {[%clk 0:02:55.7]} 7... O-O {[%clk 0:02:57.9]} 8. Be3 {[%clk 0:02:55.6]}
8... Nc6 {[%clk 0:02:57.9]} 9. f3 {[%clk 0:02:48.9]} 9... d5 {[%clk 0:02:52.9]}
10. Nxc6 {[%clk 0:02:40.2]} 10... bxc6 {[%clk 0:02:51.2]} 11. exd5 {[%clk
0:02:15.8]} 11... Nxd5 {[%clk 0:02:50.5]} 12. Nxd5 {[%clk 0:02:05.4]} 12... cxd5
{[%clk 0:02:48.4]} 13. c3 {[%clk 0:02:00]} 13... Rb8 {[%clk 0:02:40.3]} 14. Qc1
{[%clk 0:01:52.1]} 14... a5 {[%clk 0:02:13.1]} 15. Rd1 {[%clk 0:01:45.9]} 15...
e5 {[%clk 0:01:59.2]} 16. Ba7 {[%clk 0:01:29.7]} 16... Rb7 {[%clk 0:01:54.5]}
17. Bc5 {[%clk 0:01:29.4]} 17... Re8 {[%clk 0:01:43]} 18. b4 {[%clk 0:01:10.9]}
18... Be6 {[%clk 0:01:34.3]} 19. Ba6 {[%clk 0:01:03]} 19... Rb8 {[%clk
0:01:30.9]} 20. Qe3 {[%clk 0:00:53.9]} 20... Qc7 {[%clk 0:01:17.3]} 21. a4
{[%clk 0:00:42.9]} 21... d4 {[%clk 0:01:14.3]} 22. cxd4 {[%clk 0:00:18.3]} 22...
exd4 {[%clk 0:01:14.1]} 23. Bxd4 {[%clk 0:00:12.4]} 23... Bc4 {[%clk 0:01:06.1]}
24. Qc3 {[%clk 0:00:04.6]} 24... Bxd4+ {[%clk 0:00:37.6]} 25. Rxd4 {[%clk
0:00:04.4]} 25... Qb6 {[%clk 0:00:29.3]} 26. Bxc4 {[%clk 0:00:03.7]} 26... axb4
{[%clk 0:00:29]} 27. Qd3 {[%clk 0:00:03.6]} 27... b3 {[%clk 0:00:23.8]} 28. Kh1
{[%clk 0:00:03.1]} 28... b2 {[%clk 0:00:23.3]} 29. Rb1 {[%clk 0:00:01.1]} 29...
Red8 {[%clk 0:00:23.3]} 0-1

[Event "Early-Titled-Tuesday-Blitz-April-16-2024"]
[Site "Chess.com"]
[Date "2024.04.16"]
[Round "7"]
[White "GothamChess"]
[Black "BogdanDeac"]
[Result "0-1"]
[WhiteElo "2663"]
[BlackElo "3016"]
[TimeControl "180+1"]
[EndTime "9:20:50 PDT"]
[Termination "BogdanDeac won by checkmate"]

1. e4 {[%clk 0:03:00.9]} 1... c6 {[%clk 0:02:58.2]} 2. d4 {[%clk 0:02:57.5]}
2... d5 {[%clk 0:02:58.2]} 3. f3 {[%clk 0:02:56]} 3... Qb6 {[%clk 0:02:55.5]} 4.
Nc3 {[%clk 0:02:52.4]} 4... dxe4 {[%clk 0:02:54.7]} 5. fxe4 {[%clk 0:02:52.4]}
5... e5 {[%clk 0:02:55.2]} 6. Nf3 {[%clk 0:02:52.5]} 6... Bg4 {[%clk 0:02:51.6]}
7. Bc4 {[%clk 0:02:40.4]} 7... Bh5 {[%clk 0:02:10.9]} 8. g4 {[%clk 0:02:18.3]}
8... exd4 {[%clk 0:01:38.4]} 9. gxh5 {[%clk 0:02:12.7]} 9... dxc3 {[%clk
0:01:38.5]} 10. bxc3 {[%clk 0:01:01.1]} 10... Qc5 {[%clk 0:00:38.2]} 11. Qd3
{[%clk 0:00:44.8]} 11... Qxh5 {[%clk 0:00:37.1]} 12. Rb1 {[%clk 0:00:38.6]}
12... b6 {[%clk 0:00:30.8]} 13. Rb5 {[%clk 0:00:24.6]} 13... Bc5 {[%clk
0:00:26.2]} 14. Rg1 {[%clk 0:00:16.2]} 14... cxb5 {[%clk 0:00:12.4]} 15. Rg5
{[%clk 0:00:16.4]} 15... bxc4 {[%clk 0:00:06.9]} 16. Qf1 {[%clk 0:00:03.8]}
16... Qh6 {[%clk 0:00:06.8]} 17. Re5+ {[%clk 0:00:02.9]} 17... Ne7 {[%clk
0:00:06.5]} 18. Bxh6 {[%clk 0:00:02.7]} 18... gxh6 {[%clk 0:00:07.4]} 19. Nd4
{[%clk 0:00:02.9]} 19... Nd7 {[%clk 0:00:06.6]} 20. Rh5 {[%clk 0:00:01.5]} 20...
O-O-O {[%clk 0:00:06.3]} 21. Rxh6 {[%clk 0:00:01.8]} 21... Ng6 {[%clk
0:00:05.7]} 22. Qxc4 {[%clk 0:00:02.2]} 22... Nde5 {[%clk 0:00:05.1]} 23. Qa6+
{[%clk 0:00:02.3]} 23... Kb8 {[%clk 0:00:05.6]} 24. Rh5 {[%clk 0:00:02.1]} 24...
Rd7 {[%clk 0:00:05.4]} 25. Nb5 {[%clk 0:00:02.2]} 25... Rhd8 {[%clk 0:00:04.8]}
26. Rf5 {[%clk 0:00:01.3]} 26... Rd1+ {[%clk 0:00:04.8]} 27. Ke2 {[%clk
0:00:01.9]} 27... R8d2# {[%clk 0:00:05.4]} 0-1

[Event "Early-Titled-Tuesday-Blitz-April-16-2024"]
[Site "Chess.com"]
[Date "2024.04.16"]
[Round "7"]
[White "vasblesk"]
[Black "karinachess1"]
[Result "1/2-1/2"]
[WhiteElo "2817"]
[BlackElo "2622"]
[TimeControl "180+1"]
[EndTime "9:20:50 PDT"]
[Termination "Game drawn by repetition"]

1. d4 {[%clk 0:03:00.9]} 1... Nf6 {[%clk 0:02:59.7]} 2. c4 {[%clk 0:02:59.9]}
2... e6 {[%clk 0:02:59.7]} 3. g3 {[%clk 0:02:59.3]} 3... d5 {[%clk 0:02:59.9]}
4. Bg2 {[%clk 0:02:58.1]} 4... dxc4 {[%clk 0:03:00.2]} 5. Nf3 {[%clk 0:02:58.2]}
5... Nc6 {[%clk 0:03:00.3]} 6. O-O {[%clk 0:02:58.1]} 6... Rb8 {[%clk
0:02:59.3]} 7. a4 {[%clk 0:02:57.8]} 7... a6 {[%clk 0:02:57.3]} 8. a5 {[%clk
0:02:57.2]} 8... Bb4 {[%clk 0:02:57.5]} 9. Na3 {[%clk 0:02:52.8]} 9... Bxa5
{[%clk 0:02:18.6]} 10. Nxc4 {[%clk 0:02:51.8]} 10... Bb4 {[%clk 0:02:16.3]} 11.
Bg5 {[%clk 0:02:29.7]} 11... O-O {[%clk 0:02:11.8]} 12. e4 {[%clk 0:02:29.4]}
12... Be7 {[%clk 0:02:06.1]} 13. Qc2 {[%clk 0:02:17.1]} 13... Nxd4 {[%clk
0:01:48.4]} 14. Nxd4 {[%clk 0:02:16]} 14... Qxd4 {[%clk 0:01:49.3]} 15. Be3
{[%clk 0:02:13.2]} 15... Qd8 {[%clk 0:01:26.9]} 16. Rfd1 {[%clk 0:02:10.9]}
16... Qe8 {[%clk 0:01:27.1]} 17. Bf4 {[%clk 0:02:10.5]} 17... Bd8 {[%clk
0:00:53.1]} 18. Nb6 {[%clk 0:01:55.3]} 18... Bd7 {[%clk 0:00:42.4]} 19. Bxc7
{[%clk 0:01:53]} 19... Bxc7 {[%clk 0:00:41.9]} 20. Qxc7 {[%clk 0:01:53.9]} 20...
Bc6 {[%clk 0:00:41.1]} 21. e5 {[%clk 0:01:43.2]} 21... Nd5 {[%clk 0:00:26.9]}
22. Nxd5 {[%clk 0:01:38.5]} 22... exd5 {[%clk 0:00:27.2]} 23. Bxd5 {[%clk
0:01:39.3]} 23... Rc8 {[%clk 0:00:23.8]} 24. Qb6 {[%clk 0:01:29.3]} 24... Qxe5
{[%clk 0:00:21.9]} 25. Bxc6 {[%clk 0:01:11]} 25... bxc6 {[%clk 0:00:22.8]} 26.
Rxa6 {[%clk 0:01:07.9]} 26... Rb8 {[%clk 0:00:23.1]} 27. Qxc6 {[%clk 0:01:08]}
27... Rxb2 {[%clk 0:00:20.1]} 28. Ra8 {[%clk 0:01:07.8]} 28... Rbb8 {[%clk
0:00:19.7]} 29. Ra7 {[%clk 0:01:03.9]} 29... h5 {[%clk 0:00:19.2]} 30. h4 {[%clk
0:01:01.9]} 30... Rb2 {[%clk 0:00:17.6]} 31. Qf3 {[%clk 0:00:59.7]} 31... Qe2
{[%clk 0:00:17.4]} 32. Qxe2 {[%clk 0:00:44.9]} 32... Rxe2 {[%clk 0:00:18.3]} 33.
Rd3 {[%clk 0:00:43.9]} 33... g6 {[%clk 0:00:18.3]} 34. Rf3 {[%clk 0:00:43.9]}
34... Re6 {[%clk 0:00:18.2]} 35. Kg2 {[%clk 0:00:43.3]} 35... Kg7 {[%clk
0:00:18.8]} 36. Rb7 {[%clk 0:00:44]} 36... Rf6 {[%clk 0:00:19.2]} 37. Re3 {[%clk
0:00:44.8]} 37... Rd8 {[%clk 0:00:18.3]} 38. Re2 {[%clk 0:00:45.1]} 38... Rd5
{[%clk 0:00:18]} 39. Rb8 {[%clk 0:00:45.7]} 39... Rdf5 {[%clk 0:00:17.2]} 40. f4
{[%clk 0:00:44.4]} 40... Rc5 {[%clk 0:00:16.4]} 41. Ree8 {[%clk 0:00:44.7]}
41... Rfc6 {[%clk 0:00:16.3]} 42. Re2 {[%clk 0:00:40.5]} 42... Rc2 {[%clk
0:00:16.1]} 43. Rb2 {[%clk 0:00:40.9]} 43... Rxe2+ {[%clk 0:00:15.8]} 44. Rxe2
{[%clk 0:00:41.8]} 44... Kf6 {[%clk 0:00:16.2]} 45. Re5 {[%clk 0:00:41.5]} 45...
Rc2+ {[%clk 0:00:16.3]} 46. Kf3 {[%clk 0:00:41.7]} 46... Rc3+ {[%clk 0:00:17]}
47. Kf2 {[%clk 0:00:42.1]} 47... Rc2+ {[%clk 0:00:17.5]} 48. Kf3 {[%clk
0:00:42.8]} 48... Rc3+ {[%clk 0:00:18.1]} 49. Kg2 {[%clk 0:00:43.5]} 49... Rc2+
{[%clk 0:00:18.6]} 50. Kh3 {[%clk 0:00:44.3]} 50... Rc3 {[%clk 0:00:19.3]} 51.
Kg2 {[%clk 0:00:45]} 51... Rc2+ {[%clk 0:00:19.3]} 1/2-1/2

[Event "Early-Titled-Tuesday-Blitz-April-16-2024"]
[Site "Chess.com"]
[Date "2024.04.16"]
[Round "7"]
[White "martinmena"]
[Black "Maftuna2303"]
[Result "0-1"]
[WhiteElo "2157"]
[BlackElo "2379"]
[TimeControl "180+1"]
[EndTime "9:20:51 PDT"]
[Termination "Maftuna2303 won by resignation"]

1. c4 {[%clk 0:03:00.9]} 1... Nf6 {[%clk 0:02:56.4]} 2. g3 {[%clk 0:02:59.9]}
2... e6 {[%clk 0:02:56.6]} 3. Bg2 {[%clk 0:02:59.5]} 3... c6 {[%clk 0:02:56]} 4.
Nf3 {[%clk 0:02:59.4]} 4... d5 {[%clk 0:02:56.4]} 5. O-O {[%clk 0:03:00]} 5...
Be7 {[%clk 0:02:56.5]} 6. d4 {[%clk 0:03:00.5]} 6... O-O {[%clk 0:02:55.7]} 7.
b3 {[%clk 0:03:00.8]} 7... b6 {[%clk 0:02:55.6]} 8. Qc2 {[%clk 0:02:59.9]} 8...
Bb7 {[%clk 0:02:55.7]} 9. Nc3 {[%clk 0:02:58.9]} 9... Nbd7 {[%clk 0:02:54.9]}
10. Rd1 {[%clk 0:02:44.7]} 10... Rc8 {[%clk 0:02:50.7]} 11. e4 {[%clk
0:02:44.8]} 11... dxe4 {[%clk 0:02:49.5]} 12. Nxe4 {[%clk 0:02:45.7]} 12... Nxe4
{[%clk 0:02:49.8]} 13. Qxe4 {[%clk 0:02:45.2]} 13... Nf6 {[%clk 0:02:50.1]} 14.
Qc2 {[%clk 0:02:34.4]} 14... Qc7 {[%clk 0:02:49.1]} 15. Bf4 {[%clk 0:02:11.2]}
15... Bd6 {[%clk 0:02:48.6]} 16. Be5 {[%clk 0:01:58]} 16... Nd7 {[%clk
0:02:41.5]} 17. Ng5 {[%clk 0:01:43.9]} 17... g6 {[%clk 0:02:39.4]} 18. f4 {[%clk
0:01:39.3]} 18... Nxe5 {[%clk 0:02:26.3]} 19. dxe5 {[%clk 0:01:27.5]} 19... Be7
{[%clk 0:02:26.5]} 20. Ne4 {[%clk 0:01:24.3]} 20... Rfd8 {[%clk 0:02:22.5]} 21.
Qe2 {[%clk 0:01:07.6]} 21... c5 {[%clk 0:02:19.9]} 22. Nd6 {[%clk 0:00:38.9]}
22... Bxd6 {[%clk 0:02:09.9]} 23. exd6 {[%clk 0:00:34.1]} 23... Qd7 {[%clk
0:02:08.6]} 24. Rd3 {[%clk 0:00:20.5]} 24... Bxg2 {[%clk 0:02:05.3]} 25. Qxg2
{[%clk 0:00:19.7]} 25... Qc6 {[%clk 0:02:04.6]} 26. Qxc6 {[%clk 0:00:18.9]}
26... Rxc6 {[%clk 0:02:04.7]} 27. Rad1 {[%clk 0:00:19.4]} 27... Kf8 {[%clk
0:02:00.9]} 28. Kf2 {[%clk 0:00:18.4]} 28... Ke8 {[%clk 0:02:00.9]} 29. Ke3
{[%clk 0:00:18.6]} 29... Kd7 {[%clk 0:02:00.7]} 30. Ke4 {[%clk 0:00:18.8]} 30...
f6 {[%clk 0:02:00.5]} 31. g4 {[%clk 0:00:17.5]} 31... Re8 {[%clk 0:01:59.9]} 32.
h4 {[%clk 0:00:16.4]} 32... e5 {[%clk 0:01:53.9]} 33. f5 {[%clk 0:00:16.3]}
33... Rg8 {[%clk 0:01:51.7]} 34. R3d2 {[%clk 0:00:11.1]} 34... a6 {[%clk
0:01:43.7]} 35. a4 {[%clk 0:00:06.8]} 35... Rb8 {[%clk 0:01:41.6]} 36. h5 {[%clk
0:00:04]} 36... gxh5 {[%clk 0:01:38.3]} 37. Rh1 {[%clk 0:00:03.3]} 37... Rxd6
{[%clk 0:01:33.2]} 38. Rxd6+ {[%clk 0:00:03.9]} 38... Kxd6 {[%clk 0:01:33.4]}
39. Rxh5 {[%clk 0:00:04.4]} 39... Rb7 {[%clk 0:01:33]} 40. Rh6 {[%clk
0:00:03.9]} 40... Rf7 {[%clk 0:01:32.4]} 41. g5 {[%clk 0:00:04.1]} 41... Ke7
{[%clk 0:01:32.5]} 42. g6 {[%clk 0:00:04.2]} 42... hxg6 {[%clk 0:01:32]} 43.
fxg6 {[%clk 0:00:03.5]} 43... Rg7 {[%clk 0:01:32.2]} 44. Rh7 {[%clk 0:00:04.2]}
44... Kf8 {[%clk 0:01:31.6]} 45. Kf5 {[%clk 0:00:04.8]} 45... Rxh7 {[%clk
0:01:29.3]} 46. gxh7 {[%clk 0:00:03.4]} 46... Kg7 {[%clk 0:01:29.7]} 47. a5
{[%clk 0:00:02.9]} 47... bxa5 {[%clk 0:01:29.2]} 48. h8=Q+ {[%clk 0:00:02.2]}
48... Kxh8 {[%clk 0:01:29.2]} 49. Kxf6 {[%clk 0:00:02.2]} 49... e4 {[%clk
0:01:29.6]} 50. Ke5 {[%clk 0:00:03.1]} 50... e3 {[%clk 0:01:30]} 51. Kd5 {[%clk
0:00:04]} 51... e2 {[%clk 0:01:30.4]} 52. Kxc5 {[%clk 0:00:04.9]} 52... e1=Q
{[%clk 0:01:30.4]} 53. Kb6 {[%clk 0:00:05.8]} 53... Qb4+ {[%clk 0:01:30.5]} 54.
Kxa6 {[%clk 0:00:06.5]} 54... Qxb3 {[%clk 0:01:30.4]} 55. c5 {[%clk 0:00:07.1]}
55... a4 {[%clk 0:01:30.6]} 56. c6 {[%clk 0:00:07.3]} 56... a3 {[%clk
0:01:30.9]} 57. c7 {[%clk 0:00:07.6]} 57... Qc4+ {[%clk 0:01:30.8]} 58. Kb7
{[%clk 0:00:07.1]} 58... a2 {[%clk 0:01:31.1]} 0-1

[Event "Early-Titled-Tuesday-Blitz-April-16-2024"]
[Site "Chess.com"]
[Date "2024.04.16"]
[Round "7"]
[White "ProtectiveCarrot"]
[Black "Zarinur"]
[Result "0-1"]
[WhiteElo "2308"]
[BlackElo "2509"]
[TimeControl "180+1"]
[EndTime "9:20:52 PDT"]
[Termination "Zarinur won on time"]

1. d4 {[%clk 0:03:00.9]} 1... Nf6 {[%clk 0:02:59.7]} 2. c4 {[%clk 0:03:00.8]}
2... e6 {[%clk 0:02:59.6]} 3. Nc3 {[%clk 0:03:00.6]} 3... Bb4 {[%clk 0:02:59.3]}
4. e3 {[%clk 0:03:01.5]} 4... O-O {[%clk 0:02:55.7]} 5. Bd2 {[%clk 0:03:01.4]}
5... c5 {[%clk 0:02:55.5]} 6. a3 {[%clk 0:02:52]} 6... Bxc3 {[%clk 0:02:54]} 7.
Bxc3 {[%clk 0:02:52.5]} 7... d6 {[%clk 0:02:53.7]} 8. Bd3 {[%clk 0:02:44.5]}
8... Nc6 {[%clk 0:02:51.3]} 9. Nf3 {[%clk 0:02:42.9]} 9... Qe7 {[%clk
0:02:47.4]} 10. O-O {[%clk 0:02:25.5]} 10... e5 {[%clk 0:02:40.4]} 11. d5 {[%clk
0:02:09.6]} 11... Nb8 {[%clk 0:02:33.4]} 12. Nd2 {[%clk 0:02:09.1]} 12... Re8
{[%clk 0:02:29.9]} 13. b4 {[%clk 0:01:47.8]} 13... Nbd7 {[%clk 0:02:17.6]} 14.
Kh1 {[%clk 0:01:46.8]} 14... Nf8 {[%clk 0:02:13.5]} 15. f4 {[%clk 0:01:43.8]}
15... b6 {[%clk 0:01:57]} 16. fxe5 {[%clk 0:01:36.5]} 16... dxe5 {[%clk
0:01:55.6]} 17. e4 {[%clk 0:00:40.1]} 17... Ng6 {[%clk 0:01:50.5]} 18. g3 {[%clk
0:00:31]} 18... h5 {[%clk 0:01:35.4]} 19. Qe1 {[%clk 0:00:24.9]} 19... Bh3
{[%clk 0:01:33.4]} 20. Rg1 {[%clk 0:00:21]} 20... Ng4 {[%clk 0:01:14.6]} 21. Nf3
{[%clk 0:00:20]} 21... Qf6 {[%clk 0:01:07.3]} 22. Qe2 {[%clk 0:00:18.4]} 22...
h4 {[%clk 0:01:02.2]} 23. Bd2 {[%clk 0:00:15.6]} 23... hxg3 {[%clk 0:00:51.6]}
24. Rxg3 {[%clk 0:00:16.5]} 24... Nf4 {[%clk 0:00:45.6]} 25. Bxf4 {[%clk
0:00:16]} 25... exf4 {[%clk 0:00:46]} 26. Rxh3 {[%clk 0:00:14.6]} 26... Qxa1+
{[%clk 0:00:45]} 27. Kg2 {[%clk 0:00:12.4]} 27... Ne5 {[%clk 0:00:40]} 28. Ng5
{[%clk 0:00:08.4]} 28... g6 {[%clk 0:00:30.2]} 29. Qf2 {[%clk 0:00:03.2]} 29...
f3+ {[%clk 0:00:17.9]} 0-1

[Event "Early-Titled-Tuesday-Blitz-April-16-2024"]
[Site "Chess.com"]
[Date "2024.04.16"]
[Round "7"]
[White "diamonds13"]
[Black "WilsonPalencia21"]
[Result "0-1"]
[WhiteElo "2337"]
[BlackElo "2581"]
[TimeControl "180+1"]
[EndTime "9:20:53 PDT"]
[Termination "WilsonPalencia21 won by resignation"]

1. d4 {[%clk 0:03:00.9]} 1... Nf6 {[%clk 0:02:59.9]} 2. c4 {[%clk 0:03:01.1]}
2... c5 {[%clk 0:03:00.3]} 3. d5 {[%clk 0:03:00.9]} 3... e6 {[%clk 0:03:01.1]}
4. Nc3 {[%clk 0:03:00.8]} 4... exd5 {[%clk 0:03:02]} 5. cxd5 {[%clk 0:03:00.7]}
5... d6 {[%clk 0:03:02.9]} 6. Bf4 {[%clk 0:02:59.7]} 6... g6 {[%clk 0:03:03.8]}
7. e3 {[%clk 0:03:00]} 7... a6 {[%clk 0:03:03.9]} 8. a4 {[%clk 0:02:58.9]} 8...
Nh5 {[%clk 0:03:03.8]} 9. h3 {[%clk 0:02:59.6]} 9... Nxf4 {[%clk 0:03:03.8]} 10.
exf4 {[%clk 0:02:59.8]} 10... Qe7+ {[%clk 0:02:59.1]} 11. Qe2 {[%clk 0:02:58]}
11... Qxe2+ {[%clk 0:02:57.7]} 12. Bxe2 {[%clk 0:02:58.2]} 12... f5 {[%clk
0:02:53.6]} 13. Nf3 {[%clk 0:02:57.8]} 13... Bh6 {[%clk 0:02:53.2]} 14. Ng5
{[%clk 0:02:55.5]} 14... Bxg5 {[%clk 0:02:32.5]} 15. fxg5 {[%clk 0:02:55.3]}
15... Kf7 {[%clk 0:02:32.7]} 16. O-O-O {[%clk 0:02:53.5]} 16... Nd7 {[%clk
0:02:30.1]} 17. f4 {[%clk 0:02:52.7]} 17... Re8 {[%clk 0:02:25.8]} 18. Bf3
{[%clk 0:02:49]} 18... Rb8 {[%clk 0:02:25.7]} 19. g4 {[%clk 0:02:45]} 19... Nf8
{[%clk 0:02:14.1]} 20. gxf5 {[%clk 0:02:27.9]} 20... Bxf5 {[%clk 0:02:07.7]} 21.
Bg4 {[%clk 0:02:26.3]} 21... b5 {[%clk 0:02:07.1]} 22. Bxf5 {[%clk 0:02:25]}
22... gxf5 {[%clk 0:02:07]} 23. h4 {[%clk 0:02:25.2]} 23... Ng6 {[%clk
0:02:06.9]} 24. h5 {[%clk 0:02:21]} 24... Nxf4 {[%clk 0:02:01.6]} 25. Rhf1
{[%clk 0:02:20.7]} 25... Nxh5 {[%clk 0:01:59.5]} 26. Rxf5+ {[%clk 0:02:14.5]}
26... Kg6 {[%clk 0:01:59.5]} 27. Rdf1 {[%clk 0:02:10.5]} 27... b4 {[%clk
0:01:51]} 28. Nd1 {[%clk 0:02:01.7]} 28... Re5 {[%clk 0:01:46.7]} 29. Rxe5
{[%clk 0:01:55]} 29... dxe5 {[%clk 0:01:46.2]} 30. Ne3 {[%clk 0:01:54.7]} 30...
Nf4 {[%clk 0:01:33.8]} 31. Kd2 {[%clk 0:01:49.7]} 31... Nxd5 {[%clk 0:01:29.4]}
32. Nxd5 {[%clk 0:01:27.5]} 32... Rd8 {[%clk 0:01:28.8]} 33. Rf6+ {[%clk
0:01:26.5]} 33... Kxg5 {[%clk 0:01:28.9]} 34. Rxa6 {[%clk 0:01:25.8]} 34...
Rxd5+ {[%clk 0:01:29]} 35. Ke3 {[%clk 0:01:24.3]} 35... h5 {[%clk 0:01:29.1]}
36. Ra8 {[%clk 0:01:19.7]} 36... c4 {[%clk 0:01:14.3]} 37. Ke4 {[%clk
0:01:09.7]} 37... Rd2 {[%clk 0:01:13.2]} 38. Kxe5 {[%clk 0:00:36.9]} 38... Rxb2
{[%clk 0:01:11]} 39. Rg8+ {[%clk 0:00:33.9]} 39... Kh4 {[%clk 0:01:09]} 40. a5
{[%clk 0:00:30.1]} 40... c3 {[%clk 0:01:08.3]} 41. Rc8 {[%clk 0:00:28.6]} 41...
Ra2 {[%clk 0:01:06]} 42. Rc4+ {[%clk 0:00:27.5]} 42... Kg3 {[%clk 0:01:02]} 43.
Rxb4 {[%clk 0:00:25.7]} 43... Rxa5+ {[%clk 0:00:58.7]} 44. Kf6 {[%clk 0:00:22]}
44... c2 {[%clk 0:00:57.2]} 45. Rc4 {[%clk 0:00:21.9]} 45... Ra2 {[%clk
0:00:53.1]} 46. Kg5 {[%clk 0:00:20.3]} 46... Kf3 {[%clk 0:00:52.7]} 47. Kxh5
{[%clk 0:00:17.9]} 47... Ke3 {[%clk 0:00:52.9]} 48. Rc8 {[%clk 0:00:16.7]} 48...
Kd3 {[%clk 0:00:53]} 49. Rd8+ {[%clk 0:00:16.7]} 49... Kc3 {[%clk 0:00:52.3]}
50. Rc8+ {[%clk 0:00:16.9]} 50... Kb2 {[%clk 0:00:52.8]} 51. Rb8+ {[%clk
0:00:17.1]} 51... Ka1 {[%clk 0:00:53.2]} 52. Rc8 {[%clk 0:00:16.9]} 52... Kb1
{[%clk 0:00:53.6]} 53. Rb8+ {[%clk 0:00:16.7]} 53... Rb2 {[%clk 0:00:54.2]} 0-1

[Event "Early-Titled-Tuesday-Blitz-April-16-2024"]
[Site "Chess.com"]
[Date "2024.04.16"]
[Round "7"]
[White "David_George21"]
[Black "masterofpuppets2"]
[Result "0-1"]
[WhiteElo "2314"]
[BlackElo "2468"]
[TimeControl "180+1"]
[EndTime "9:20:53 PDT"]
[Termination "masterofpuppets2 won by resignation"]

1. e4 {[%clk 0:02:57.9]} 1... e5 {[%clk 0:02:59.8]} 2. Nf3 {[%clk 0:02:56.3]}
2... Nc6 {[%clk 0:02:58.1]} 3. Bb5 {[%clk 0:02:55.6]} 3... a6 {[%clk 0:02:57.9]}
4. Ba4 {[%clk 0:02:55.4]} 4... Nf6 {[%clk 0:02:57.3]} 5. O-O {[%clk 0:02:55.8]}
5... d6 {[%clk 0:02:57.9]} 6. d4 {[%clk 0:02:53.7]} 6... b5 {[%clk 0:02:56.3]}
7. Bb3 {[%clk 0:02:49.7]} 7... Nxd4 {[%clk 0:02:56.1]} 8. Nxd4 {[%clk
0:02:41.3]} 8... exd4 {[%clk 0:02:57]} 9. a4 {[%clk 0:02:18]} 9... Rb8 {[%clk
0:02:55.9]} 10. axb5 {[%clk 0:01:59.9]} 10... axb5 {[%clk 0:02:56.8]} 11. Bg5
{[%clk 0:01:47.6]} 11... Be7 {[%clk 0:02:56.2]} 12. Qxd4 {[%clk 0:01:19.6]}
12... O-O {[%clk 0:02:55.8]} 13. c3 {[%clk 0:00:57.9]} 13... c5 {[%clk
0:02:53.8]} 14. Qe3 {[%clk 0:00:57.5]} 14... Be6 {[%clk 0:02:29.4]} 15. Bc2
{[%clk 0:00:42.4]} 15... h6 {[%clk 0:02:27.7]} 16. Bh4 {[%clk 0:00:35.3]} 16...
Ng4 {[%clk 0:02:25.4]} 17. Bxe7 {[%clk 0:00:31.9]} 17... Qxe7 {[%clk 0:02:26.3]}
18. Qg3 {[%clk 0:00:29.4]} 18... Nf6 {[%clk 0:02:00.3]} 19. Nd2 {[%clk
0:00:19.7]} 19... Ra8 {[%clk 0:01:45.5]} 20. f4 {[%clk 0:00:15.3]} 20... Bd7
{[%clk 0:00:40.8]} 21. Rfe1 {[%clk 0:00:09.4]} 21... Rxa1 {[%clk 0:00:37.2]} 22.
Rxa1 {[%clk 0:00:08.9]} 22... Bc6 {[%clk 0:00:38.1]} 23. Qe3 {[%clk 0:00:03.8]}
23... Nd5 {[%clk 0:00:29.7]} 24. Qf2 {[%clk 0:00:03.1]} 24... Nf6 {[%clk
0:00:24.7]} 25. Re1 {[%clk 0:00:02.7]} 25... Re8 {[%clk 0:00:22.7]} 26. h3
{[%clk 0:00:02.3]} 26... Qc7 {[%clk 0:00:16.7]} 27. e5 {[%clk 0:00:03]} 27...
dxe5 {[%clk 0:00:16]} 28. Qxc5 {[%clk 0:00:02]} 28... exf4 {[%clk 0:00:14.8]}
29. Rxe8+ {[%clk 0:00:02.7]} 29... Nxe8 {[%clk 0:00:15.7]} 30. Qf5 {[%clk
0:00:02.6]} 30... Nf6 {[%clk 0:00:15.7]} 31. Qxf4 {[%clk 0:00:02.2]} 31... Qxf4
{[%clk 0:00:15.3]} 0-1

[Event "Early-Titled-Tuesday-Blitz-April-16-2024"]
[Site "Chess.com"]
[Date "2024.04.16"]
[Round "7"]
[White "LuisFSiles"]
[Black "osielchesslover2011"]
[Result "1-0"]
[WhiteElo "2365"]
[BlackElo "2093"]
[TimeControl "180+1"]
[EndTime "9:20:56 PDT"]
[Termination "LuisFSiles won by resignation"]

1. e4 {[%clk 0:03:00.9]} 1... c5 {[%clk 0:02:54.8]} 2. Nf3 {[%clk 0:02:59.7]}
2... d6 {[%clk 0:02:47.9]} 3. Bb5+ {[%clk 0:02:59.2]} 3... Nd7 {[%clk
0:02:47.2]} 4. O-O {[%clk 0:02:57.8]} 4... a6 {[%clk 0:02:47.1]} 5. Bd3 {[%clk
0:02:57.3]} 5... Ngf6 {[%clk 0:02:46.9]} 6. Re1 {[%clk 0:02:57.5]} 6... e6
{[%clk 0:02:46.6]} 7. c3 {[%clk 0:02:57.5]} 7... Be7 {[%clk 0:02:47]} 8. Bc2
{[%clk 0:02:57.8]} 8... Qc7 {[%clk 0:02:46.8]} 9. d4 {[%clk 0:02:57.4]} 9...
cxd4 {[%clk 0:02:47.3]} 10. cxd4 {[%clk 0:02:57.9]} 10... b5 {[%clk 0:02:47.3]}
11. Nc3 {[%clk 0:02:39.3]} 11... Bb7 {[%clk 0:02:45.4]} 12. a3 {[%clk
0:02:32.3]} 12... Rc8 {[%clk 0:02:37.3]} 13. Bf4 {[%clk 0:02:26.3]} 13... Nb6
{[%clk 0:02:25]} 14. Bb3 {[%clk 0:02:12.6]} 14... Qb8 {[%clk 0:02:09.4]} 15. e5
{[%clk 0:02:05.6]} 15... dxe5 {[%clk 0:02:07.4]} 16. Nxe5 {[%clk 0:01:57.9]}
16... Qa8 {[%clk 0:02:02]} 17. Nxf7 {[%clk 0:01:35.7]} 17... Kxf7 {[%clk
0:01:39.4]} 18. Bxe6+ {[%clk 0:01:34.5]} 18... Kf8 {[%clk 0:01:38.6]} 19. Bg5
{[%clk 0:01:16.1]} 19... Rd8 {[%clk 0:01:30]} 20. Bxf6 {[%clk 0:01:14.9]} 20...
Bxf6 {[%clk 0:01:30.4]} 21. Qh5 {[%clk 0:01:06.9]} 21... Rd7 {[%clk 0:01:06.1]}
22. Qc5+ {[%clk 0:00:58]} 22... Re7 {[%clk 0:01:05.4]} 23. Qxb6 {[%clk
0:00:57.6]} 23... Bxg2 {[%clk 0:01:04.6]} 24. d5 {[%clk 0:00:54.9]} 24... Bf3
{[%clk 0:00:57.4]} 25. Re3 {[%clk 0:00:50.3]} 25... Bh5 {[%clk 0:00:49.7]} 26.
Rae1 {[%clk 0:00:44.5]} 26... Be8 {[%clk 0:00:20.6]} 27. d6 {[%clk 0:00:42.8]}
27... Rb7 {[%clk 0:00:20.4]} 28. Qc5 {[%clk 0:00:40.2]} 28... Bd7 {[%clk
0:00:20.9]} 29. Nd5 {[%clk 0:00:36.6]} 29... Bxe6 {[%clk 0:00:18.7]} 30. Rxe6
{[%clk 0:00:37.5]} 30... Kf7 {[%clk 0:00:18.4]} 31. Nxf6 {[%clk 0:00:37]} 31...
gxf6 {[%clk 0:00:18]} 32. Qh5+ {[%clk 0:00:37.4]} 32... Kg7 {[%clk 0:00:16.7]}
33. R1e3 {[%clk 0:00:35.6]} 33... Rg8 {[%clk 0:00:15.4]} 34. Re7+ {[%clk
0:00:33]} 34... Rxe7 {[%clk 0:00:12]} 35. Rxe7+ {[%clk 0:00:33.9]} 35... Kh8+
{[%clk 0:00:12.2]} 36. Kf1 {[%clk 0:00:31.1]} 36... Rg7 {[%clk 0:00:08.4]} 37.
Re8+ {[%clk 0:00:30.4]} 37... Rg8 {[%clk 0:00:07.4]} 38. Rxa8 {[%clk 0:00:30.4]}
38... Rxa8 {[%clk 0:00:08]} 39. d7 {[%clk 0:00:30.9]} 1-0